[Event "*** Titled Tuesday Blitz"]
[Site "Chess.com"]
[Date "2021.03.09"]
[Round "5"]
[White "urutodo"]
[Black "Iskusnyh"]
[Result "0-1"]
[WhiteElo "2300"]
[BlackElo "2591"]
[TimeControl "180+1"]
[EndTime "10:58:28 PST"]
[Termination "Iskusnyh won by resignation"]

1. e4 {[%clk 0:03:00.9]} 1... e6 {[%clk 0:02:59.4]} 2. d4 {[%clk 0:03:00.6]}
2... d5 {[%clk 0:02:59.4]} 3. exd5 {[%clk 0:03:01.1]} 3... exd5 {[%clk
0:02:58.6]} 4. Bf4 {[%clk 0:03:01.6]} 4... Bd6 {[%clk 0:02:55.8]} 5. Qd2 {[%clk
0:03:01.4]} 5... Nf6 {[%clk 0:02:40.7]} 6. Nc3 {[%clk 0:03:01.4]} 6... O-O
{[%clk 0:02:35.4]} 7. O-O-O {[%clk 0:03:01.2]} 7... c6 {[%clk 0:02:34.1]} 8. Bd3
{[%clk 0:02:59.7]} 8... b5 {[%clk 0:02:31.5]} 9. Nge2 {[%clk 0:02:59.6]} 9... a5
{[%clk 0:02:30.3]} 10. Bxd6 {[%clk 0:02:57.9]} 10... Qxd6 {[%clk 0:02:29.8]} 11.
Qf4 {[%clk 0:02:58.8]} 11... Qd8 {[%clk 0:02:21.4]} 12. Ng3 {[%clk 0:02:58.3]}
12... a4 {[%clk 0:02:16.2]} 13. Rhe1 {[%clk 0:02:41]} 13... b4 {[%clk
0:02:14.8]} 14. Nce2 {[%clk 0:02:40.8]} 14... b3 {[%clk 0:02:14.7]} 15. a3
{[%clk 0:02:38.4]} 15... bxc2 {[%clk 0:01:57.6]} 16. Bxc2 {[%clk 0:02:37.6]}
16... Ra7 {[%clk 0:01:41.7]} 17. Nf5 {[%clk 0:02:34.5]} 17... Bxf5 {[%clk
0:01:40.7]} 18. Qxf5 {[%clk 0:02:32.5]} 18... Na6 {[%clk 0:01:34.3]} 19. Ng3
{[%clk 0:02:29.4]} 19... g6 {[%clk 0:01:28.8]} 20. Qf4 {[%clk 0:02:23.9]} 20...
Nc7 {[%clk 0:01:25.2]} 21. Re2 {[%clk 0:02:05.3]} 21... Ne6 {[%clk 0:01:24.1]}
22. Qd2 {[%clk 0:01:52.4]} 22... Qd6 {[%clk 0:01:16.3]} 23. Rde1 {[%clk
0:01:44.7]} 23... Nf4 {[%clk 0:01:14.4]} 24. Re5 {[%clk 0:01:33.6]} 24... Nxg2
{[%clk 0:00:59.2]} 25. Rg1 {[%clk 0:01:30.7]} 25... Nh4 {[%clk 0:00:48.1]} 26.
Qh6 {[%clk 0:01:22.7]} 26... Ng4 {[%clk 0:00:33.3]} 27. Qxh4 {[%clk 0:01:14.9]}
27... Nxe5 {[%clk 0:00:33.2]} 28. dxe5 {[%clk 0:01:15.8]} 28... Qxe5 {[%clk
0:00:33.5]} 29. Nh5 {[%clk 0:00:31.7]} 29... f5 {[%clk 0:00:28.7]} 30. f4 {[%clk
0:00:20]} 30... Qe3+ {[%clk 0:00:28.1]} 31. Kb1 {[%clk 0:00:19.1]} 31... Qxg1+
{[%clk 0:00:27.9]} 32. Ka2 {[%clk 0:00:18.5]} 32... gxh5 {[%clk 0:00:27.7]} 33.
Qxh5 {[%clk 0:00:10.9]} 33... Qg6 {[%clk 0:00:26.4]} 0-1

[Event "*** Titled Tuesday Blitz"]
[Site "Chess.com"]
[Date "2021.03.09"]
[Round "5"]
[White "WiktoriaPOL"]
[Black "Kostukov_Alex"]
[Result "0-1"]
[WhiteElo "2068"]
[BlackElo "2322"]
[TimeControl "180+1"]
[EndTime "10:58:29 PST"]
[Termination "Kostukov_Alex won on time"]

1. e4 {[%clk 0:03:00.9]} 1... c5 {[%clk 0:02:57.8]} 2. d4 {[%clk 0:03:00.2]}
2... cxd4 {[%clk 0:02:57.9]} 3. c3 {[%clk 0:02:59.7]} 3... g6 {[%clk 0:02:55.5]}
4. cxd4 {[%clk 0:02:58.8]} 4... d5 {[%clk 0:02:55.3]} 5. e5 {[%clk 0:02:58.4]}
5... Nc6 {[%clk 0:02:54.9]} 6. Nc3 {[%clk 0:02:58.1]} 6... Bg7 {[%clk
0:02:54.6]} 7. f4 {[%clk 0:02:56.6]} 7... Nh6 {[%clk 0:02:54.2]} 8. Nf3 {[%clk
0:02:55.1]} 8... Bg4 {[%clk 0:02:54.3]} 9. Be3 {[%clk 0:02:44.7]} 9... Nf5
{[%clk 0:02:53.9]} 10. Bf2 {[%clk 0:02:44.2]} 10... O-O {[%clk 0:02:52.6]} 11.
Be2 {[%clk 0:02:42.5]} 11... e6 {[%clk 0:02:48.9]} 12. h3 {[%clk 0:02:37.8]}
12... Bxf3 {[%clk 0:02:48.8]} 13. Bxf3 {[%clk 0:02:37.5]} 13... f6 {[%clk
0:02:49.2]} 14. O-O {[%clk 0:02:27.4]} 14... fxe5 {[%clk 0:02:47.4]} 15. fxe5
{[%clk 0:02:26.4]} 15... Nh4 {[%clk 0:02:24.4]} 16. Bg4 {[%clk 0:02:08.2]} 16...
Nf5 {[%clk 0:02:20.4]} 17. Qd3 {[%clk 0:01:53.8]} 17... Qg5 {[%clk 0:02:18.6]}
18. Rae1 {[%clk 0:01:49.4]} 18... h5 {[%clk 0:02:17.7]} 19. Bf3 {[%clk
0:01:48.2]} 19... Nh4 {[%clk 0:02:16]} 20. Bxh4 {[%clk 0:01:39.5]} 20... Qxh4
{[%clk 0:02:16.2]} 21. Rd1 {[%clk 0:01:22.9]} 21... Kh7 {[%clk 0:02:04.2]} 22.
Rd2 {[%clk 0:01:00.5]} 22... Bh6 {[%clk 0:02:03.2]} 23. Rdd1 {[%clk 0:00:58]}
23... Bf4 {[%clk 0:01:55.5]} 24. Ne2 {[%clk 0:00:55.6]} 24... Bh6 {[%clk
0:01:49.9]} 25. Kh2 {[%clk 0:00:47.7]} 25... Qg5 {[%clk 0:01:40]} 26. g3 {[%clk
0:00:38]} 26... Rf7 {[%clk 0:01:28.2]} 27. h4 {[%clk 0:00:35.4]} 27... Qf5
{[%clk 0:01:22.6]} 28. Bxh5 {[%clk 0:00:12]} 28... Qxd3 {[%clk 0:01:01.8]} 29.
Rxf7+ {[%clk 0:00:10.4]} 29... Kg8 {[%clk 0:01:00.7]} 30. Rxd3 {[%clk
0:00:09.3]} 30... Kxf7 {[%clk 0:00:59.1]} 31. Rf3+ {[%clk 0:00:09.3]} 31... Kg7
{[%clk 0:00:57.9]} 32. Bg4 {[%clk 0:00:09.4]} 32... Nd8 {[%clk 0:00:53.5]} 33.
Rc3 {[%clk 0:00:05.8]} 33... Nc6 {[%clk 0:00:32.3]} 34. Bxe6 {[%clk 0:00:03.9]}
34... Rf8 {[%clk 0:00:32.5]} 35. Kg2 {[%clk 0:00:03.4]} 35... Be3 {[%clk
0:00:32.6]} 0-1

[Event "*** Titled Tuesday Blitz"]
[Site "Chess.com"]
[Date "2021.03.09"]
[Round "5"]
[White "Blitzking642"]
[Black "FredyMatsuura"]
[Result "1-0"]
[WhiteElo "2413"]
[BlackElo "2201"]
[TimeControl "180+1"]
[EndTime "10:58:30 PST"]
[Termination "Blitzking642 won by resignation"]

1. e4 {[%clk 0:03:00.9]} 1... c5 {[%clk 0:02:59.5]} 2. Nf3 {[%clk 0:03:00.4]}
2... e6 {[%clk 0:02:59.7]} 3. d4 {[%clk 0:02:59.9]} 3... cxd4 {[%clk 0:02:59.8]}
4. Nxd4 {[%clk 0:03:00.8]} 4... Nf6 {[%clk 0:03:00.3]} 5. Nc3 {[%clk 0:03:00.1]}
5... d6 {[%clk 0:03:00.8]} 6. Be2 {[%clk 0:02:59.6]} 6... Nc6 {[%clk 0:03:00.2]}
7. O-O {[%clk 0:02:57.4]} 7... Be7 {[%clk 0:02:59.8]} 8. Be3 {[%clk 0:02:57.3]}
8... O-O {[%clk 0:02:59.5]} 9. f4 {[%clk 0:02:57.9]} 9... Bd7 {[%clk 0:02:59.2]}
10. Nb3 {[%clk 0:02:42.5]} 10... a5 {[%clk 0:02:57]} 11. a4 {[%clk 0:02:41.4]}
11... Nb4 {[%clk 0:02:56.8]} 12. Bf3 {[%clk 0:02:22.6]} 12... Bc6 {[%clk
0:02:55.4]} 13. Nd4 {[%clk 0:02:23.1]} 13... Re8 {[%clk 0:02:29]} 14. Nxc6
{[%clk 0:02:13.4]} 14... bxc6 {[%clk 0:02:27.4]} 15. Ne2 {[%clk 0:02:04.4]}
15... e5 {[%clk 0:02:16.5]} 16. c3 {[%clk 0:01:58.9]} 16... exf4 {[%clk
0:02:11.6]} 17. Bxf4 {[%clk 0:01:45.4]} 17... Na6 {[%clk 0:02:09]} 18. Nd4
{[%clk 0:01:40.5]} 18... Qb6 {[%clk 0:02:03]} 19. Kh1 {[%clk 0:01:33.1]} 19...
Qxb2 {[%clk 0:01:55.5]} 20. Nxc6 {[%clk 0:01:28.8]} 20... Bf8 {[%clk 0:01:53.4]}
21. Qd4 {[%clk 0:01:12.4]} 21... Rac8 {[%clk 0:01:05.5]} 22. Rab1 {[%clk
0:00:49.8]} 22... Qa3 {[%clk 0:00:59.6]} 23. e5 {[%clk 0:00:35.1]} 23... dxe5
{[%clk 0:00:55.6]} 24. Bxe5 {[%clk 0:00:35.4]} 24... Re6 {[%clk 0:00:34.7]} 25.
Nxa5 {[%clk 0:00:19.7]} 25... Bc5 {[%clk 0:00:29.7]} 26. Qf4 {[%clk 0:00:19.5]}
26... Nd7 {[%clk 0:00:23.7]} 27. Bg4 {[%clk 0:00:15.6]} 27... Nxe5 {[%clk
0:00:20.6]} 28. Bxe6 {[%clk 0:00:14.5]} 28... fxe6 {[%clk 0:00:19.8]} 29. Qxe5
{[%clk 0:00:14]} 29... Qa2 {[%clk 0:00:15.8]} 30. Nb3 {[%clk 0:00:11.9]} 30...
Re8 {[%clk 0:00:14.8]} 31. Nxc5 {[%clk 0:00:11.4]} 31... Nxc5 {[%clk 0:00:14.7]}
32. Qxc5 {[%clk 0:00:11.5]} 32... Qxa4 {[%clk 0:00:15.3]} 33. Qb5 {[%clk
0:00:11.7]} 1-0

[Event "*** Titled Tuesday Blitz"]
[Site "Chess.com"]
[Date "2021.03.09"]
[Round "5"]
[White "PotapovaM"]
[Black "imdvb6307"]
[Result "1-0"]
[WhiteElo "2523"]
[BlackElo "2377"]
[TimeControl "180+1"]
[EndTime "10:58:34 PST"]
[Termination "PotapovaM won on time"]

1. d4 {[%clk 0:02:55.6]} 1... d5 {[%clk 0:02:58.9]} 2. c4 {[%clk 0:02:55.9]}
2... c6 {[%clk 0:02:58.6]} 3. Nf3 {[%clk 0:02:55.5]} 3... Nf6 {[%clk 0:02:58.6]}
4. g3 {[%clk 0:02:55.3]} 4... e6 {[%clk 0:02:56]} 5. Bg2 {[%clk 0:02:55.4]} 5...
dxc4 {[%clk 0:02:56]} 6. O-O {[%clk 0:02:55.9]} 6... Nbd7 {[%clk 0:02:54.9]} 7.
Qc2 {[%clk 0:02:37.4]} 7... Be7 {[%clk 0:02:37.7]} 8. Nbd2 {[%clk 0:02:35.7]}
8... Nb6 {[%clk 0:02:24.5]} 9. Nxc4 {[%clk 0:02:18.5]} 9... Nxc4 {[%clk
0:02:21.2]} 10. Qxc4 {[%clk 0:02:19.4]} 10... O-O {[%clk 0:02:18.7]} 11. Rd1
{[%clk 0:02:18.5]} 11... Qd5 {[%clk 0:02:03.9]} 12. Qc2 {[%clk 0:02:16.9]} 12...
Rd8 {[%clk 0:01:40.4]} 13. Bf4 {[%clk 0:02:15.7]} 13... Qa5 {[%clk 0:01:36]} 14.
a3 {[%clk 0:02:13.6]} 14... Nd5 {[%clk 0:01:35.3]} 15. Bd2 {[%clk 0:02:12.3]}
15... Qb6 {[%clk 0:01:29.3]} 16. e4 {[%clk 0:02:10.8]} 16... Nf6 {[%clk
0:01:29]} 17. Bc3 {[%clk 0:02:11]} 17... c5 {[%clk 0:01:21]} 18. Rac1 {[%clk
0:02:02.5]} 18... Bd7 {[%clk 0:01:16.4]} 19. dxc5 {[%clk 0:02:01.4]} 19... Qxc5
{[%clk 0:01:14.8]} 20. Qb3 {[%clk 0:01:39.6]} 20... Qb5 {[%clk 0:01:12.3]} 21.
Qc2 {[%clk 0:01:35.8]} 21... Rac8 {[%clk 0:01:08.2]} 22. Nd4 {[%clk 0:01:30.4]}
22... Qa4 {[%clk 0:01:06.1]} 23. Qe2 {[%clk 0:01:26.8]} 23... e5 {[%clk
0:00:49.9]} 24. Nc2 {[%clk 0:01:23.3]} 24... Bb5 {[%clk 0:00:21]} 25. Qe1 {[%clk
0:01:23.1]} 25... Nd7 {[%clk 0:00:20.4]} 26. Ne3 {[%clk 0:01:20.8]} 26... Rc6
{[%clk 0:00:14.9]} 27. Nd5 {[%clk 0:01:20.7]} 27... Bf8 {[%clk 0:00:14.6]} 28.
Bh3 {[%clk 0:01:13.8]} 28... Bc4 {[%clk 0:00:08.4]} 29. Ne3 {[%clk 0:01:08.5]}
29... Be6 {[%clk 0:00:07.6]} 30. Bf1 {[%clk 0:01:00]} 30... Rdc8 {[%clk
0:00:06.7]} 31. Rd2 {[%clk 0:00:56.7]} 31... Nb6 {[%clk 0:00:06.7]} 32. Rcd1
{[%clk 0:00:53.3]} 32... Be7 {[%clk 0:00:06.9]} 33. Bxe5 {[%clk 0:00:50]} 33...
Nc4 {[%clk 0:00:05.8]} 34. Nxc4 {[%clk 0:00:48.9]} 34... Bxc4 {[%clk 0:00:05.4]}
35. Bg2 {[%clk 0:00:43.6]} 35... Bb3 {[%clk 0:00:02.2]} 36. Rb1 {[%clk
0:00:41.1]} 36... f6 {[%clk 0:00:02.7]} 37. Bc3 {[%clk 0:00:40.8]} 37... Rd6
{[%clk 0:00:02.7]} 38. e5 {[%clk 0:00:37.2]} 1-0

[Event "*** Titled Tuesday Blitz"]
[Site "Chess.com"]
[Date "2021.03.09"]
[Round "5"]
[White "lider34"]
[Black "Bigfish1995"]
[Result "0-1"]
[WhiteElo "2472"]
[BlackElo "3076"]
[TimeControl "180+1"]
[EndTime "10:58:35 PST"]
[Termination "Bigfish1995 won by resignation"]

1. e4 {[%clk 0:03:00.9]} 1... c5 {[%clk 0:02:50.9]} 2. c3 {[%clk 0:03:00.4]}
2... Nf6 {[%clk 0:02:41.3]} 3. e5 {[%clk 0:02:59.7]} 3... Nd5 {[%clk 0:02:41.2]}
4. d4 {[%clk 0:03:00.1]} 4... cxd4 {[%clk 0:02:41]} 5. Nf3 {[%clk 0:03:00.6]}
5... d6 {[%clk 0:02:40.5]} 6. cxd4 {[%clk 0:03:00.1]} 6... Nc6 {[%clk
0:02:39.3]} 7. Bc4 {[%clk 0:02:59.9]} 7... e6 {[%clk 0:02:36.3]} 8. O-O {[%clk
0:02:59.1]} 8... Be7 {[%clk 0:02:36.6]} 9. Re1 {[%clk 0:02:58.8]} 9... O-O
{[%clk 0:02:36]} 10. Qe2 {[%clk 0:02:54.6]} 10... dxe5 {[%clk 0:02:27.6]} 11.
dxe5 {[%clk 0:02:54.4]} 11... Bd7 {[%clk 0:02:12.7]} 12. Qe4 {[%clk 0:02:50.6]}
12... Rc8 {[%clk 0:02:10.3]} 13. Bd3 {[%clk 0:02:47.9]} 13... g6 {[%clk
0:02:06.7]} 14. Bh6 {[%clk 0:02:47.2]} 14... Re8 {[%clk 0:02:01.6]} 15. Nbd2
{[%clk 0:02:38.9]} 15... Ncb4 {[%clk 0:01:56.6]} 16. Bc4 {[%clk 0:02:31.9]}
16... Bc6 {[%clk 0:01:53]} 17. Nd4 {[%clk 0:02:18]} 17... Bg5 {[%clk 0:01:32.3]}
18. Nxc6 {[%clk 0:02:07.5]} 18... Nxc6 {[%clk 0:01:18.2]} 19. Bxg5 {[%clk
0:02:05.6]} 19... Qxg5 {[%clk 0:01:17.9]} 20. Nf3 {[%clk 0:02:03.5]} 20... Qe7
{[%clk 0:01:09.3]} 21. a3 {[%clk 0:01:53.3]} 21... Red8 {[%clk 0:01:04.6]} 22.
Rad1 {[%clk 0:01:51.9]} 22... Nb6 {[%clk 0:01:02.7]} 23. Bb5 {[%clk 0:01:37.9]}
23... Kg7 {[%clk 0:00:52.2]} 24. h3 {[%clk 0:01:32]} 24... a6 {[%clk 0:00:43.9]}
25. Be2 {[%clk 0:01:14.8]} 25... h6 {[%clk 0:00:43.6]} 26. Rxd8 {[%clk
0:01:08.2]} 26... Rxd8 {[%clk 0:00:43.4]} 27. Rd1 {[%clk 0:01:08.2]} 27... Rxd1+
{[%clk 0:00:43]} 28. Bxd1 {[%clk 0:01:08.1]} 28... Qc5 {[%clk 0:00:43.1]} 29.
Qf4 {[%clk 0:00:30.1]} 29... Nd7 {[%clk 0:00:42.6]} 30. Ba4 {[%clk 0:00:28.3]}
30... b5 {[%clk 0:00:41.1]} 31. Bb3 {[%clk 0:00:26.8]} 31... Ndxe5 {[%clk
0:00:34.6]} 32. Nxe5 {[%clk 0:00:25.9]} 32... Qxe5 {[%clk 0:00:34.6]} 33. Qd2
{[%clk 0:00:22.8]} 33... Qd4 {[%clk 0:00:30.2]} 34. Qc2 {[%clk 0:00:21.3]} 34...
Ne5 {[%clk 0:00:29.2]} 35. Qc7 {[%clk 0:00:18.5]} 35... Nd3 {[%clk 0:00:27.8]}
36. Bxe6 {[%clk 0:00:15.8]} 36... Qxf2+ {[%clk 0:00:26.7]} 37. Kh1 {[%clk
0:00:15.6]} 37... Qe1+ {[%clk 0:00:26.1]} 38. Kh2 {[%clk 0:00:13.7]} 38... Qxe6
{[%clk 0:00:27]} 0-1

[Event "*** Titled Tuesday Blitz"]
[Site "Chess.com"]
[Date "2021.03.09"]
[Round "5"]
[White "zacachess"]
[Black "OlifantCZ"]
[Result "0-1"]
[WhiteElo "2483"]
[BlackElo "2302"]
[TimeControl "180+1"]
[EndTime "10:58:37 PST"]
[Termination "OlifantCZ won on time"]

1. e4 {[%clk 0:03:00.9]} 1... e6 {[%clk 0:02:59.7]} 2. d4 {[%clk 0:03:00.5]}
2... d5 {[%clk 0:03:00.2]} 3. e5 {[%clk 0:03:01.1]} 3... c5 {[%clk 0:03:00]} 4.
c3 {[%clk 0:03:01.7]} 4... Nc6 {[%clk 0:03:00.2]} 5. Nf3 {[%clk 0:03:02.3]} 5...
Bd7 {[%clk 0:03:00.7]} 6. Be2 {[%clk 0:03:01.5]} 6... Nge7 {[%clk 0:03:00.1]} 7.
O-O {[%clk 0:02:59.9]} 7... Nf5 {[%clk 0:02:47.8]} 8. Bd3 {[%clk 0:02:59.5]}
8... Nh4 {[%clk 0:02:41.2]} 9. Nbd2 {[%clk 0:02:48.9]} 9... cxd4 {[%clk
0:02:38.9]} 10. cxd4 {[%clk 0:02:48.7]} 10... Be7 {[%clk 0:02:35]} 11. Nxh4
{[%clk 0:02:44.4]} 11... Bxh4 {[%clk 0:02:34.5]} 12. Nf3 {[%clk 0:02:45]} 12...
Be7 {[%clk 0:02:33.5]} 13. Be3 {[%clk 0:02:38.7]} 13... Nb4 {[%clk 0:02:19.9]}
14. Be2 {[%clk 0:02:37.4]} 14... Rc8 {[%clk 0:02:15.3]} 15. a3 {[%clk
0:02:34.7]} 15... Nc2 {[%clk 0:02:13.9]} 16. Rc1 {[%clk 0:02:34.4]} 16... Nxe3
{[%clk 0:02:11.6]} 17. fxe3 {[%clk 0:02:35.3]} 17... O-O {[%clk 0:02:09.6]} 18.
Bd3 {[%clk 0:02:28.8]} 18... Qb6 {[%clk 0:02:05.5]} 19. Qe2 {[%clk 0:02:22.1]}
19... Ba4 {[%clk 0:01:56.9]} 20. Qd2 {[%clk 0:01:57.9]} 20... Bb3 {[%clk
0:01:55.2]} 21. Bb1 {[%clk 0:01:51.8]} 21... Bc4 {[%clk 0:01:53.1]} 22. Rfe1
{[%clk 0:01:51.9]} 22... a5 {[%clk 0:01:45.8]} 23. Rc3 {[%clk 0:01:16.7]} 23...
a4 {[%clk 0:01:39.9]} 24. Rec1 {[%clk 0:01:16.6]} 24... Qa6 {[%clk 0:01:40.1]}
25. e4 {[%clk 0:01:10.6]} 25... b5 {[%clk 0:01:37.9]} 26. exd5 {[%clk
0:01:02.5]} 26... Bxd5 {[%clk 0:01:34.1]} 27. Ng5 {[%clk 0:00:54.8]} 27... g6
{[%clk 0:01:24.7]} 28. Ne4 {[%clk 0:00:48]} 28... Bxe4 {[%clk 0:01:21.6]} 29.
Bxe4 {[%clk 0:00:48.9]} 29... b4 {[%clk 0:01:18.3]} 30. Rc6 {[%clk 0:00:44.6]}
30... Rxc6 {[%clk 0:01:11.9]} 31. Rxc6 {[%clk 0:00:45.5]} 31... Qb5 {[%clk
0:01:11]} 32. axb4 {[%clk 0:00:39.1]} 32... Bxb4 {[%clk 0:01:06.9]} 33. Qc2
{[%clk 0:00:36.1]} 33... a3 {[%clk 0:00:50]} 34. bxa3 {[%clk 0:00:31.8]} 34...
Bxa3 {[%clk 0:00:50.2]} 35. Rc8 {[%clk 0:00:17]} 35... Qb4 {[%clk 0:00:48.8]}
36. Rxf8+ {[%clk 0:00:14.9]} 36... Kxf8 {[%clk 0:00:48.1]} 37. Qd1 {[%clk
0:00:11.2]} 37... Bb2 {[%clk 0:00:47]} 38. Bf3 {[%clk 0:00:04.1]} 38... Bxd4+
{[%clk 0:00:45.3]} 39. Kf1 {[%clk 0:00:03.9]} 39... Bxe5 {[%clk 0:00:44.8]} 40.
Qd8+ {[%clk 0:00:03.6]} 40... Kg7 {[%clk 0:00:44.7]} 41. Qd1 {[%clk 0:00:03]}
41... Qc4+ {[%clk 0:00:39.6]} 0-1

[Event "*** Titled Tuesday Blitz"]
[Site "Chess.com"]
[Date "2021.03.09"]
[Round "5"]
[White "Legendinunknown"]
[Black "XanoushX_X"]
[Result "1-0"]
[WhiteElo "2627"]
[BlackElo "2451"]
[TimeControl "180+1"]
[EndTime "10:58:39 PST"]
[Termination "Legendinunknown won by resignation"]

1. d4 {[%clk 0:03:00.9]} 1... d5 {[%clk 0:02:58.2]} 2. c4 {[%clk 0:03:01.3]}
2... c6 {[%clk 0:02:58.2]} 3. Nf3 {[%clk 0:03:00.4]} 3... Nf6 {[%clk 0:02:57.8]}
4. Nc3 {[%clk 0:02:59.7]} 4... e6 {[%clk 0:02:57.9]} 5. Bg5 {[%clk 0:02:58.8]}
5... dxc4 {[%clk 0:02:57.5]} 6. e4 {[%clk 0:02:57.1]} 6... b5 {[%clk 0:02:57]}
7. e5 {[%clk 0:02:56.3]} 7... h6 {[%clk 0:02:57.1]} 8. Bh4 {[%clk 0:02:55.5]}
8... g5 {[%clk 0:02:57.4]} 9. Nxg5 {[%clk 0:02:53.7]} 9... hxg5 {[%clk
0:02:58.3]} 10. Bxg5 {[%clk 0:02:54.6]} 10... Nbd7 {[%clk 0:02:58.1]} 11. g3
{[%clk 0:02:53.3]} 11... Bb7 {[%clk 0:02:58.3]} 12. Bg2 {[%clk 0:02:52.9]} 12...
Qb6 {[%clk 0:02:58.6]} 13. exf6 {[%clk 0:02:49.7]} 13... O-O-O {[%clk
0:02:58.3]} 14. O-O {[%clk 0:02:48.9]} 14... b4 {[%clk 0:02:46.4]} 15. Ne4
{[%clk 0:02:44.9]} 15... c5 {[%clk 0:02:44]} 16. Rc1 {[%clk 0:02:41]} 16... Bd5
{[%clk 0:02:36.1]} 17. Be3 {[%clk 0:02:29]} 17... Qc6 {[%clk 0:02:25.9]} 18. f3
{[%clk 0:02:25.1]} 18... cxd4 {[%clk 0:02:13.7]} 19. Bxd4 {[%clk 0:02:24]} 19...
Nc5 {[%clk 0:02:13.9]} 20. Nxc5 {[%clk 0:01:55.6]} 20... Bxc5 {[%clk 0:02:14.8]}
21. Bxc5 {[%clk 0:01:55.9]} 21... Qxc5+ {[%clk 0:02:10.3]} 22. Kh1 {[%clk
0:01:56]} 22... Rh6 {[%clk 0:01:44.4]} 23. Qe1 {[%clk 0:01:49.8]} 23... Rdh8
{[%clk 0:01:39.4]} 24. h4 {[%clk 0:01:47.8]} 24... Rxf6 {[%clk 0:01:30.4]} 25.
Qf2 {[%clk 0:01:29]} 25... Qxf2 {[%clk 0:01:28.2]} 26. Rxf2 {[%clk 0:01:29.9]}
26... Kb7 {[%clk 0:01:22.4]} 27. f4 {[%clk 0:01:27.4]} 27... Rc8 {[%clk
0:01:21.4]} 28. g4 {[%clk 0:01:16.3]} 28... c3 {[%clk 0:01:10.5]} 29. bxc3
{[%clk 0:01:13.5]} 29... Rxc3 {[%clk 0:01:10.6]} 30. Rxc3 {[%clk 0:00:58.5]}
30... bxc3 {[%clk 0:01:11.5]} 31. g5 {[%clk 0:00:58.4]} 31... c2 {[%clk
0:00:20.4]} 32. Rxc2 {[%clk 0:00:55.9]} 32... Rxf4 {[%clk 0:00:20.7]} 33. Bxd5+
{[%clk 0:00:48.4]} 33... exd5 {[%clk 0:00:21.6]} 34. Kg2 {[%clk 0:00:48.8]}
34... Rg4+ {[%clk 0:00:22]} 35. Kh3 {[%clk 0:00:48.2]} 35... Re4 {[%clk
0:00:20.6]} 36. Rf2 {[%clk 0:00:46.4]} 36... Re7 {[%clk 0:00:19.5]} 37. h5
{[%clk 0:00:46.6]} 37... d4 {[%clk 0:00:19.4]} 38. h6 {[%clk 0:00:46.1]} 38...
d3 {[%clk 0:00:19.5]} 39. Kg4 {[%clk 0:00:44.7]} 39... Re2 {[%clk 0:00:18.3]}
40. Rxf7+ {[%clk 0:00:43.8]} 40... Kc6 {[%clk 0:00:16.6]} 41. Rf1 {[%clk
0:00:44.1]} 41... d2 {[%clk 0:00:16]} 42. Rd1 {[%clk 0:00:43.6]} 42... Kc5
{[%clk 0:00:15.7]} 43. h7 {[%clk 0:00:43.3]} 43... Rh2 {[%clk 0:00:15.4]} 44. g6
{[%clk 0:00:43.7]} 44... Kc4 {[%clk 0:00:15]} 45. Rxd2 {[%clk 0:00:42.4]} 45...
Rxd2 {[%clk 0:00:14.3]} 46. h8=Q {[%clk 0:00:41.9]} 1-0

[Event "*** Titled Tuesday Blitz"]
[Site "Chess.com"]
[Date "2021.03.09"]
[Round "5"]
[White "dretch"]
[Black "SirStrateg"]
[Result "1-0"]
[WhiteElo "2846"]
[BlackElo "2602"]
[TimeControl "180+1"]
[EndTime "10:58:40 PST"]
[Termination "dretch won by checkmate"]

1. d4 {[%clk 0:03:00.9]} 1... Nf6 {[%clk 0:02:58.5]} 2. c4 {[%clk 0:03:01]} 2...
Nc6 {[%clk 0:02:57.6]} 3. Nf3 {[%clk 0:03:00]} 3... e6 {[%clk 0:02:58]} 4. a3
{[%clk 0:02:51.1]} 4... d6 {[%clk 0:02:57.7]} 5. Nc3 {[%clk 0:02:50.7]} 5... g6
{[%clk 0:02:58.3]} 6. e4 {[%clk 0:02:49.1]} 6... Bg7 {[%clk 0:02:59]} 7. Be2
{[%clk 0:02:49.5]} 7... O-O {[%clk 0:02:59.6]} 8. O-O {[%clk 0:02:49.7]} 8...
Re8 {[%clk 0:03:00.3]} 9. d5 {[%clk 0:02:26.4]} 9... exd5 {[%clk 0:02:50.9]} 10.
cxd5 {[%clk 0:02:24.2]} 10... Ne7 {[%clk 0:02:51.6]} 11. Bg5 {[%clk 0:02:17.5]}
11... h6 {[%clk 0:02:49.6]} 12. Bd2 {[%clk 0:02:14.3]} 12... c6 {[%clk
0:02:49.1]} 13. dxc6 {[%clk 0:02:12.5]} 13... bxc6 {[%clk 0:02:49.6]} 14. Re1
{[%clk 0:02:12.1]} 14... Rb8 {[%clk 0:02:48.1]} 15. Qc2 {[%clk 0:02:11.6]} 15...
d5 {[%clk 0:02:45.8]} 16. Bf4 {[%clk 0:02:09.2]} 16... Ra8 {[%clk 0:02:31.6]}
17. Rad1 {[%clk 0:02:08.6]} 17... g5 {[%clk 0:02:12.7]} 18. Bc1 {[%clk
0:02:03.1]} 18... Be6 {[%clk 0:02:09.8]} 19. Nd4 {[%clk 0:01:59.9]} 19... Qb6
{[%clk 0:01:50.9]} 20. Be3 {[%clk 0:01:55]} 20... Qb7 {[%clk 0:01:44.9]} 21.
Nxe6 {[%clk 0:01:14]} 21... fxe6 {[%clk 0:01:44.8]} 22. Bc5 {[%clk 0:01:07.4]}
22... a5 {[%clk 0:01:36.9]} 23. Bf3 {[%clk 0:01:03.9]} 23... Kf7 {[%clk
0:01:28.7]} 24. e5 {[%clk 0:01:01.3]} 24... Nd7 {[%clk 0:01:20.6]} 25. Bh5+
{[%clk 0:00:59]} 25... Kg8 {[%clk 0:01:21]} 26. Bxe8 {[%clk 0:00:58.7]} 26...
Rxe8 {[%clk 0:01:21.9]} 27. Bd6 {[%clk 0:00:55]} 27... Nf5 {[%clk 0:01:10]} 28.
Na4 {[%clk 0:00:54.7]} 28... Nxd6 {[%clk 0:00:49.3]} 29. exd6 {[%clk 0:00:54.3]}
29... Qb5 {[%clk 0:00:43.1]} 30. b4 {[%clk 0:00:44.3]} 30... axb4 {[%clk
0:00:42.6]} 31. axb4 {[%clk 0:00:44.5]} 31... Nf8 {[%clk 0:00:29.9]} 32. Nc5
{[%clk 0:00:34.3]} 32... Qxb4 {[%clk 0:00:30.1]} 33. d7 {[%clk 0:00:34.2]} 33...
Rd8 {[%clk 0:00:30.2]} 34. Nxe6 {[%clk 0:00:33.7]} 34... Nxe6 {[%clk 0:00:30.2]}
35. Rxe6 {[%clk 0:00:34.2]} 35... Rxd7 {[%clk 0:00:30.6]} 36. Re8+ {[%clk
0:00:31.5]} 36... Kf7 {[%clk 0:00:30.2]} 37. Rde1 {[%clk 0:00:30.3]} 37... Qf4
{[%clk 0:00:23.4]} 38. Qxc6 {[%clk 0:00:28.2]} 38... Qf5 {[%clk 0:00:19.2]} 39.
R8e6 {[%clk 0:00:13.7]} 39... Ra7 {[%clk 0:00:16.2]} 40. Qe8# {[%clk 0:00:13.1]}
1-0